[Event "RUS-ch Women Blitz 2019"]
[Site "Sochi"]
[Date "2019.10.17"]
[Round "9.4"]
[White "Garifullina, Leya"]
[Black "Guseva, Marina"]
[Result "1/2-1/2"]
[ECO "B12"]
[WhiteElo "2330"]
[BlackElo "2366"]
[Annotator "NA"]
[PlyCount "117"]
[EventDate "2019.10.17"]
[EventType "swiss"]
[EventCountry "RUS"]
[SourceTitle "playchess.com"]
[Source "ChessBase"]
[SourceQuality "1"]
[TimeControl "180+2"]

1. e4 {[%emt 0:00:00]} c6 {[%emt 0:00:00]} 2. d4 {[%emt 0:00:00]} d5 {[%emt 0:00:00]} 3. e5 {[%emt 0:00:01]} Bf5 {[%emt 0:00:01]} 4. h4 {[%emt 0:00:00]} c5 {[%emt 0:00:07]} 5. dxc5 {[%emt 0:00:02]} Qc7 {[%emt 0:00:36]} 6. Qxd5 {[%emt 0:00:10]} e6 {[%emt 0:00:03]} 7. Qc4 {[%emt 0:00:07]} Qxe5+ {[%emt 0:00:04]} 8. Be2 {[%emt 0:00:11]} Qxc5 {[%emt 0:00:04]} 9. Qa4+ {[%emt 0:00:24]} Nc6 {[%emt 0:00:04]} 10. Nc3 {[%emt 0:00:01]} Qd4 {[%emt 0:00:33]} 11. Qb5 {[%emt 0:00:14]} O-O-O {[%emt 0:00:11]} 12. Be3 {[%emt 0:00:27]} Qb4 {[%emt 0:00:04]} 13. a3 {[%emt 0:00:02]} Qxb5 {[%emt 0:00:02]} 14. Nxb5 {[%emt 0:00:08]} a6 {[%emt 0:00:08]} 15. Na7+ {[%emt 0:00:06]} Nxa7 {[%emt 0:00:02]} 16. Bxa7 {[%emt 0:00:02]} Nf6 {[%emt 0:00:07]} 17. Nf3 {[%emt 0:00:06]} Bd6 {[%emt 0:00:13]} 18. Bd4 {[%emt 0:00:04]} Bc7 {[%emt 0:00:08]} 19. O-O-O {[%emt 0:00:35]} Ne4 {[%emt 0:00:51]} 20. Be3 {[%emt 0:00:10]} e5 {[%emt 0:00:09]} 21. Bc4 {[%emt 0:00:07]} f6 {[%emt 0:00:03]} 22. Nd2 {[%emt 0:00:19]} Nxd2 {[%emt 0:00:04]} 23. Rxd2 {[%emt 0:00:01]} Rxd2 {[%emt 0:00:02]} 24. Kxd2 {[%emt 0:00:01]} Rd8+ {[%emt 0:00:01]} 25. Kc1 {[%emt 0:00:01]} b5 {[%emt 0:00:01]} 26. Be2 {[%emt 0:00:04]} Be4 {[%emt 0:00:01]} 27. f3 {[%emt 0:00:02]} Bc6 {[%emt 0:00:02]} 28. h5 {[%emt 0:00:10]} e4 {[%emt 0:00:06]} 29. f4 {[%emt 0:00:11]} f5 {[%emt 0:00:01]} 30. g4 {[%emt 0:00:02]} g6 {[%emt 0:00:03]} 31. hxg6 {[%emt 0:00:02]} hxg6 {[%emt 0:00:01]} 32. Rh6 {[%emt 0:00:04]} Be8 {[%emt 0:00:08]} 33. c4 {[%emt 0:00:07]} bxc4 {[%emt 0:00:02]} 34. Bxc4 {[%emt 0:00:01]} a5 {[%emt 0:00:03]} 35. Be6+ {[%emt 0:00:02]} Bd7 {[%emt 0:00:01]} 36. Bxd7+ {[%emt 0:00:01]} Rxd7 {[%emt 0:00:01]} 37. Rxg6 {[%emt 0:00:01]} fxg4 {[%emt 0:00:01]} 38. Rxg4 {[%emt 0:00:01]} Rd3 {[%emt 0:00:01]} 39. Bd2 {[%emt 0:00:07]} e3 {[%emt 0:00:02]} 40. Be1 {[%emt 0:00:01]} e2 {[%emt 0:00:01]} 41. Bd2 {[%emt 0:00:01]} Bb6 {[%emt 0:00:03]} 42. Rg2 {[%emt 0:00:03]} Rf3 {[%emt 0:00:04]} 43. Rxe2 {[%emt 0:00:01]} Kb7 {[%emt 0:00:03]} 44. Kc2 {[%emt 0:00:02]} Bc7 {[%emt 0:00:02]} 45. Re7 {[%emt 0:00:02]} Kc6 {[%emt 0:00:01]} 46. Re6+ {[%emt 0:00:01]} Kb5 {[%emt 0:00:02]} 47. Rf6 {[%emt 0:00:01]} a4 {[%emt 0:00:02]} 48. Rf5+ {[%emt 0:00:02]} Kc4 {[%emt 0:00:02]} 49. Rf8 {[%emt 0:00:02]} Bb6 {[%emt 0:00:03]} 50. Rc8+ {[%emt 0:00:01]} Kb5 {[%emt 0:00:01]} 51. Rc3 {[%emt 0:00:03]} Rf2 {[%emt 0:00:01]} 52. Rd3 {[%emt 0:00:01]} Kc4 {[%emt 0:00:02]} 53. Rc3+ {[%emt 0:00:02]} Kb5 {[%emt 0:00:01]} 54. b3 {[%emt 0:00:01]} axb3+ {[%emt 0:00:01]} 55. Rxb3+ {[%emt 0:00:01]} Kc6 {[%emt 0:00:03]} 56. a4 {[%emt 0:00:02]} Ba5 {[%emt 0:00:02]} 57. Rd3 {[%emt 0:00:01]} Bxd2 {[%emt 0:00:02]} 58. Rxd2 {[%emt 0:00:01]} Rxf4 {[%emt 0:00:01]} 59. Kb3 {[%emt 0:00:01] Kd5} 1/2-1/2

[Event "RUS-ch Women Blitz 2019"]
[Site "Sochi"]
[Date "2019.10.17"]
[Round "9.6"]
[White "Pogonina, Natalija"]
[Black "Charochkina, Daria"]
[Result "1-0"]
[ECO "D00"]
[WhiteElo "2479"]
[BlackElo "2355"]
[Annotator "ChessBase"]
[PlyCount "121"]
[EventDate "2019.10.17"]
[EventType "swiss"]
[EventCountry "RUS"]
[SourceTitle "playchess.com"]
[Source "ChessBase"]
[SourceQuality "1"]
[TimeControl "180+2"]

1. d4 {[%emt 0:00:00]} d5 {[%emt 0:00:00]} 2. g3 {[%emt 0:00:02]} Nf6 {[%emt 0:00:02]} 3. Bg2 {[%emt 0:00:01]} g6 {[%emt 0:00:02]} 4. c4 {[%emt 0:00:05]} c6 {[%emt 0:00:01]} 5. Qa4 {[%emt 0:00:10]} Bg7 {[%emt 0:00:05]} 6. cxd5 {[%emt 0:00:03]} Nxd5 {[%emt 0:00:02]} 7. Nf3 {[%emt 0:00:04]} O-O {[%emt 0:00:04]} 8. O-O {[%emt 0:00:02]} Nb6 {[%emt 0:00:08]} 9. Qc2 {[%emt 0:00:04]} Bg4 {[%emt 0:00:07]} 10. Rd1 {[%emt 0:00:04]} N8d7 {[%emt 0:00:06]} 11. Nc3 {[%emt 0:00:03]} Rc8 {[%emt 0:00:06]} 12. Bf4 {[%emt 0:00:06]} Nd5 {[%emt 0:00:26]} 13. Nxd5 {[%emt 0:00:08]} cxd5 {[%emt 0:00:01]} 14. Qb3 {[%emt 0:00:02]} Nb6 {[%emt 0:00:07]} 15. a4 {[%emt 0:00:14]} Bf5 {[%emt 0:00:08]} 16. Rdc1 {[%emt 0:00:04]} Qd7 {[%emt 0:00:49]} 17. Ne5 {[%emt 0:00:16]} Bxe5 {[%emt 0:00:02]} 18. Bxe5 {[%emt 0:00:02]} Nc4 {[%emt 0:00:01]} 19. Bf4 {[%emt 0:00:08]} Be6 {[%emt 0:00:04]} 20. a5 {[%emt 0:00:08]} a6 {[%emt 0:00:08]} 21. Qb4 {[%emt 0:00:03]} Nd6 {[%emt 0:00:13]} 22. Bxd6 {[%emt 0:00:07]} exd6 {[%emt 0:00:01]} 23. e3 {[%emt 0:00:07]} Rc6 {[%emt 0:00:06]} 24. Bf1 {[%emt 0:00:26]} Rfc8 {[%emt 0:00:02]} 25. Rxc6 {[%emt 0:00:04]} Qxc6 {[%emt 0:00:01]} 26. Ra3 {[%emt 0:00:02]} Qc1 {[%emt 0:00:04]} 27. Rc3 {[%emt 0:00:03]} Rxc3 {[%emt 0:00:03]} 28. Qxc3 {[%emt 0:00:02]} Qa1 {[%emt 0:00:10]} 29. h4 Bh3 {[%emt 0:00:08]} 30. Qd3 {[%emt 0:00:36]} Bxf1 {[%emt 0:00:05]} 31. Qxf1 {[%emt 0:00:02]} Qxa5 {[%emt 0:00:06]} 32. Qc1 {[%emt 0:00:04]} Qd8 {[%emt 0:00:06]} 33. Kg2 {[%emt 0:00:03]} Kg7 {[%emt 0:00:01]} 34. Qc3 {[%emt 0:00:03]} h5 {[%emt 0:00:05]} 35. Qb3 {[%emt 0:00:03]} Qc7 {[%emt 0:00:05]} 36. Qxd5 {[%emt 0:00:03]} Qc6 {[%emt 0:00:16]} 37. Qxc6 {[%emt 0:00:02]} bxc6 {[%emt 0:00:01]} 38. Kf3 {[%emt 0:00:09]} Kf6 {[%emt 0:00:02]} 39. Ke4 {[%emt 0:00:02]} Ke6 {[%emt 0:00:00]} 40. f3 {[%emt 0:00:04]} c5 {[%emt 0:00:06]} 41. dxc5 {[%emt 0:00:08]} dxc5 {[%emt 0:00:01]} 42. Kd3 {[%emt 0:00:01]} f5 {[%emt 0:00:03]} 43. Kc4 {[%emt 0:00:02]} Kd6 {[%emt 0:00:00]} 44. b3 {[%emt 0:00:06]} Kc6 {[%emt 0:00:04]} 45. e4 {[%emt 0:00:08]} fxe4 {[%emt 0:00:01]} 46. fxe4 {[%emt 0:00:01]} Kd6 {[%emt 0:00:01]} 47. e5+ {[%emt 0:00:02]} Kxe5 {[%emt 0:00:02]} 48. Kxc5 {[%emt 0:00:01]} Ke4 {[%emt 0:00:04]} 49. Kb6 {[%emt 0:00:02]} Kd3 {[%emt 0:00:08]} 50. Kxa6 {[%emt 0:00:03]} Kc3 {[%emt 0:00:00]} 51. Kb5 {[%emt 0:00:02]} Kxb3 {[%emt 0:00:01]} 52. Kc5 {[%emt 0:00:01]} Kc3 {[%emt 0:00:01]} 53. Kd5 {[%emt 0:00:02]} Kd3 {[%emt 0:00:01]} 54. Ke5 {[%emt 0:00:01]} Ke3 {[%emt 0:00:01]} 55. Kf6 {[%emt 0:00:02]} Kf3 {[%emt 0:00:01]} 56. Kxg6 {[%emt 0:00:01]} Kxg3 {[%emt 0:00:01]} 57. Kxh5 {[%emt 0:00:01]} Kf4 {[%emt 0:00:02]} 58. Kg6 {[%emt 0:00:01]} Ke5 {[%emt 0:00:04]} 59. h5 {[%emt 0:00:01]} Ke6 {[%emt 0:00:01]} 60. h6 {[%emt 0:00:02]} Ke7 {[%emt 0:00:00]} 61. Kg7 {[%emt 0:00:01]} 1-0

[Event "RUS-ch Women Blitz 2019"]
[Site "Sochi"]
[Date "2019.10.17"]
[Round "9.7"]
[White "Markelova, Lubov"]
[Black "Ambartsumova, Karina"]
[Result "0-1"]
[ECO "A04"]
[WhiteElo "2198"]
[BlackElo "2341"]
[Annotator "NA"]
[PlyCount "104"]
[EventDate "2019.10.17"]
[EventType "swiss"]
[EventCountry "RUS"]
[SourceTitle "playchess.com"]
[Source "ChessBase"]
[SourceQuality "1"]
[TimeControl "180+2"]

1. Nf3 {[%emt 0:00:00]} c5 {[%emt 0:00:06]} 2. c4 {[%emt 0:00:00]} Nc6 {[%emt 0:00:10]} 3. Nc3 {[%emt 0:00:02]} e6 {[%emt 0:00:15]} 4. e3 {[%emt 0:00:07]} Nf6 {[%emt 0:00:03]} 5. b3 {[%emt 0:00:16]} Be7 {[%emt 0:00:07]} 6. Bb2 {[%emt 0:00:05]} O-O {[%emt 0:00:02]} 7. Be2 {[%emt 0:00:15]} d5 {[%emt 0:00:04]} 8. cxd5 {[%emt 0:00:03]} Nxd5 {[%emt 0:00:13]} 9. Nxd5 {[%emt 0:00:10]} Qxd5 {[%emt 0:00:01]} 10. O-O {[%emt 0:00:11]} Rd8 {[%emt 0:00:15]} 11. d4 {[%emt 0:00:06]} Bf6 {[%emt 0:00:20]} 12. Ne5 {[%emt 0:00:58]} Bxe5 {[%emt 0:00:48]} 13. dxe5 {[%emt 0:00:05]} Qd2 {[%emt 0:00:04]} 14. Rb1 {[%emt 0:00:44]} b6 {[%emt 0:00:16]} 15. Bf3 {[%emt 0:00:14]} Bb7 {[%emt 0:00:00]} 16. Qc1 {[%emt 0:00:03]} Qxc1 {[%emt 0:00:05]} 17. Rbxc1 {[%emt 0:00:04]} Rd2 {[%emt 0:00:03]} 18. Bc3 {[%emt 0:00:05]} Rd7 {[%emt 0:00:18]} 19. Rfd1 {[%emt 0:00:01]} Rad8 {[%emt 0:00:00]} 20. Rxd7 {[%emt 0:00:01]} Rxd7 {[%emt 0:00:01]} 21. Rd1 {[%emt 0:00:02]} Rxd1+ {[%emt 0:00:04]} 22. Bxd1 {[%emt 0:00:00]} Ne7 {[%emt 0:00:02]} 23. Bf3 {[%emt 0:00:07]} Bxf3 {[%emt 0:00:03]} 24. gxf3 {[%emt 0:00:01]} Nd5 {[%emt 0:00:06]} 25. Bd2 {[%emt 0:00:03]} b5 {[%emt 0:00:07]} 26. Kf1 {[%emt 0:00:02]} Kf8 {[%emt 0:00:04]} 27. Ke2 {[%emt 0:00:02]} Ke7 {[%emt 0:00:03]} 28. e4 {[%emt 0:00:02]} Nb6 {[%emt 0:00:03]} 29. Kd3 {[%emt 0:00:01]} Kd7 {[%emt 0:00:02]} 30. Be3 {[%emt 0:00:03]} Kc6 {[%emt 0:00:01]} 31. Kc3 {[%emt 0:00:02]} Nd7 {[%emt 0:00:02]} 32. f4 {[%emt 0:00:01]} g6 {[%emt 0:00:02]} 33. a3 {[%emt 0:00:03]} a5 {[%emt 0:00:03]} 34. f3 {[%emt 0:00:03]} Nb6 {[%emt 0:00:05]} 35. Bf2 {[%emt 0:00:05]} b4+ {[%emt 0:00:02]} 36. axb4 {[%emt 0:00:01]} axb4+ {[%emt 0:00:01]} 37. Kc2 {[%emt 0:00:02]} Kb5 {[%emt 0:00:01]} 38. Kd3 {[%emt 0:00:01]} Nc8 {[%emt 0:00:02]} 39. Be3 {[%emt 0:00:02]} Ne7 {[%emt 0:00:03]} 40. Bf2 {[%emt 0:00:01]} Nc6 {[%emt 0:00:00]} 41. Be3 {[%emt 0:00:02]} Na5 {[%emt 0:00:01]} 42. Kc2 {[%emt 0:00:01]} c4 {[%emt 0:00:01]} 43. bxc4+ {[%emt 0:00:01]} Kxc4 {[%emt 0:00:00]} 44. Bb6 {[%emt 0:00:01]} Nc6 {[%emt 0:00:03]} 45. Bc7 {[%emt 0:00:03]} b3+ {[%emt 0:00:01]} 46. Kb2 {[%emt 0:00:01]} Nb4 {[%emt 0:00:01]} 47. Ba5 {[%emt 0:00:03]} Nd3+ {[%emt 0:00:01]} 48. Kb1 {[%emt 0:00:01]} Nxf4 {[%emt 0:00:03]} 49. Bd2 {[%emt 0:00:06]} Nd3 {[%emt 0:00:02]} 50. f4 {[%emt 0:00:02]} Nf2 {[%emt 0:00:01]} 51. f5 {[%emt 0:00:02]} Nxe4 {[%emt 0:00:01]} 52. Be3 {[%emt 0:00:01]} exf5 {[%emt 0:00:04]} 0-1

[Event "RUS-ch Women Blitz 2019"]
[Site "Sochi"]
[Date "2019.10.17"]
[Round "9.8"]
[White "Serditykh, Olesya"]
[Black "Styazhkina, Anna"]
[Result "0-1"]
[ECO "D19"]
[WhiteElo "1990"]
[BlackElo "2280"]
[Annotator "NA"]
[PlyCount "76"]
[EventDate "2019.10.17"]
[EventType "swiss"]
[EventCountry "RUS"]
[SourceTitle "playchess.com"]
[Source "ChessBase"]
[SourceQuality "1"]
[TimeControl "180+2"]

1. d4 {[%emt 0:00:00]} d5 {[%emt 0:00:00]} 2. Nf3 {[%emt 0:00:00]} Nf6 {[%emt 0:00:01]} 3. c4 {[%emt 0:00:01]} c6 {[%emt 0:00:01]} 4. Nc3 {[%emt 0:00:02]} dxc4 {[%emt 0:00:02]} 5. a4 {[%emt 0:00:01]} Bf5 {[%emt 0:00:02]} 6. e3 {[%emt 0:00:01]} e6 {[%emt 0:00:01]} 7. Bxc4 {[%emt 0:00:01]} Bb4 {[%emt 0:00:02]} 8. O-O {[%emt 0:00:02]} O-O {[%emt 0:00:01]} 9. Qe2 {[%emt 0:00:03]} Bg6 {[%emt 0:00:08]} 10. Ne5 {[%emt 0:00:05]} Nbd7 {[%emt 0:00:09]} 11. Nxg6 {[%emt 0:00:03]} hxg6 {[%emt 0:00:06]} 12. Rd1 {[%emt 0:00:02]} Qa5 {[%emt 0:00:11]} 13. Bd2 {[%emt 0:00:03]} Rad8 {[%emt 0:00:04]} 14. h3 {[%emt 0:00:31]} c5 {[%emt 0:00:09]} 15. d5 {[%emt 0:00:52]} e5 {[%emt 0:00:37]} 16. e4 {[%emt 0:00:07]} Nb6 {[%emt 0:00:17]} 17. Bb3 {[%emt 0:00:12]} Nc8 {[%emt 0:00:01]} 18. Rac1 {[%emt 0:00:39]} Nd6 {[%emt 0:00:02]} 19. Bc2 {[%emt 0:00:01]} a6 {[%emt 0:00:15]} 20. Rf1 {[%emt 0:00:12]} Rfe8 {[%emt 0:00:02]} 21. Rce1 {[%emt 0:00:02]} c4 {[%emt 0:00:24]} 22. Qf3 {[%emt 0:00:28]} Qc5 {[%emt 0:00:18]} 23. Bg5 {[%emt 0:00:08]} Qd4 {[%emt 0:00:18]} 24. Rd1 {[%emt 0:00:04]} Qb6 {[%emt 0:00:03]} 25. Bxf6 {[%emt 0:00:04]} gxf6 {[%emt 0:00:02]} 26. Qxf6 {[%emt 0:00:02]} Bc5 {[%emt 0:00:08]} 27. Qf3 {[%emt 0:00:01]} Qxb2 {[%emt 0:00:02]} 28. Rc1 {[%emt 0:00:05]} Qb6 {[%emt 0:00:04]} 29. Rb1 {[%emt 0:00:02]} Qc7 {[%emt 0:00:03]} 30. Rfc1 {[%emt 0:00:01]} Kg7 {[%emt 0:00:05]} 31. Bd1 {[%emt 0:00:02]} Rb8 {[%emt 0:00:03]} 32. Be2 {[%emt 0:00:02]} b5 {[%emt 0:00:01]} 33. axb5 {[%emt 0:00:01]} axb5 {[%emt 0:00:03]} 34. Qg3 {[%emt 0:00:02]} Bd4 {[%emt 0:00:03]} 35. Kh1 {[%emt 0:00:04]} b4 {[%emt 0:00:04]} 36. Nd1 {[%emt 0:00:02]} c3 {[%emt 0:00:02]} 37. Ne3 {[%emt 0:00:01]} Nxe4 {[%emt 0:00:05]} 38. Qf3 {[%emt 0:00:03]} Nd2 {[%emt 0:00:01]} 0-1

[Event "RUS-ch Women Blitz 2019"]
[Site "Sochi"]
[Date "2019.10.17"]
[Round "9.10"]
[White "Sukhareva, Evgeniya"]
[Black "Zhurova, Anna"]
[Result "1-0"]
[ECO "A43"]
[WhiteElo "2122"]
[BlackElo "1987"]
[Annotator "NA"]
[PlyCount "88"]
[EventDate "2019.10.17"]
[EventType "swiss"]
[EventCountry "RUS"]
[SourceTitle "playchess.com"]
[Source "ChessBase"]
[SourceQuality "1"]
[TimeControl "180+2"]

1. d4 {[%emt 0:00:00]} c5 {[%emt 0:00:00]} 2. d5 {[%emt 0:00:01]} f5 {[%emt 0:00:00]} 3. c4 {[%emt 0:00:05]} g6 {[%emt 0:00:00]} 4. g3 {[%emt 0:00:05]} Bg7 {[%emt 0:00:01]} 5. Bg2 {[%emt 0:00:01]} d6 {[%emt 0:00:01]} 6. Nf3 {[%emt 0:00:04]} Nf6 {[%emt 0:00:01]} 7. Nc3 {[%emt 0:00:02]} O-O {[%emt 0:00:01]} 8. O-O {[%emt 0:00:03]} Na6 {[%emt 0:00:01]} 9. Re1 {[%emt 0:00:02]} Nc7 {[%emt 0:00:01]} 10. e4 {[%emt 0:00:21]} fxe4 {[%emt 0:00:10]} 11. Nxe4 {[%emt 0:00:01]} Nxe4 {[%emt 0:00:01]} 12. Rxe4 {[%emt 0:00:02]} Bf5 {[%emt 0:00:01]} 13. Re1 {[%emt 0:00:02]} b5 {[%emt 0:00:04]} 14. Bg5 {[%emt 0:00:22]} Bf6 {[%emt 0:00:05]} 15. Bxf6 {[%emt 0:00:13]} exf6 {[%emt 0:00:40]} 16. b3 {[%emt 0:00:15]} Re8 {[%emt 0:00:05]} 17. Nh4 {[%emt 0:00:08]} Bd7 {[%emt 0:00:08]} 18. Qc2 {[%emt 0:00:08]} Kg7 {[%emt 0:00:06]} 19. Nf3 {[%emt 0:00:07]} Bf5 {[%emt 0:00:09]} 20. Qc3 {[%emt 0:00:01]} Qd7 21. Qa5 {[%emt 0:00:20]} Bd3 {[%emt 0:01:11]} 22. Nd2 {[%emt 0:00:24]} Re5 {[%emt 0:00:33]} 23. Bh3 {[%emt 0:00:22]} Qe7 {[%emt 0:00:15]} 24. Nf3 {[%emt 0:00:01]} Re4 {[%emt 0:00:08]} 25. Rxe4 {[%emt 0:00:11]} Bxe4 {[%emt 0:00:01]} 26. Re1 {[%emt 0:00:01]} Re8 {[%emt 0:00:03]} 27. Nd2 {[%emt 0:00:11]} f5 {[%emt 0:00:04]} 28. f3 {[%emt 0:00:02]} bxc4 {[%emt 0:00:01]} 29. fxe4 {[%emt 0:00:09]} Nxd5 {[%emt 0:00:01]} 30. Nxc4 Nf6 31. e5 {[%emt 0:00:11]} dxe5 {[%emt 0:00:02]} 32. Rxe5 {[%emt 0:00:01]} Qd7 {[%emt 0:00:02]} 33. Rxe8 {[%emt 0:00:02]} Qxe8 {[%emt 0:00:01]} 34. Qc3 {[%emt 0:00:03]} Qe6 {[%emt 0:00:06]} 35. Bf1 {[%emt 0:00:03]} Kf7 {[%emt 0:00:02]} 36. Bg2 {[%emt 0:00:03]} Ng4 {[%emt 0:00:02]} 37. Qd2 {[%emt 0:00:02]} Qe7 {[%emt 0:00:03]} 38. Bd5+ {[%emt 0:00:01]} Kf8 {[%emt 0:00:01]} 39. h3 {[%emt 0:00:01]} Nf6 {[%emt 0:00:02]} 40. Bg2 {[%emt 0:00:01]} Nh5 {[%emt 0:00:02]} 41. Kh2 {[%emt 0:00:01]} Qc7 {[%emt 0:00:01]} 42. Qd6+ {[%emt 0:00:01]} Qxd6 {[%emt 0:00:01]} 43. Nxd6 {[%emt 0:00:01]} Ke7 {[%emt 0:00:01]} 44. Nc8+ {[%emt 0:00:01]} Kd7 {[%emt 0:00:00]} 1-0

[Event "RUS-ch Women Blitz 2019"]
[Site "Sochi"]
[Date "2019.10.17"]
[Round "9.11"]
[White "Chernyak, Viktoria"]
[Black "Dubnikova, Anastasia"]
[Result "1-0"]
[ECO "A14"]
[WhiteElo "2284"]
[BlackElo "2171"]
[Annotator "NA"]
[PlyCount "113"]
[EventDate "2019.10.17"]
[EventType "swiss"]
[EventCountry "RUS"]
[SourceTitle "playchess.com"]
[Source "ChessBase"]
[SourceQuality "1"]
[TimeControl "180+2"]

1. c4 {[%emt 0:00:00]} e6 {[%emt 0:00:00]} 2. g3 {[%emt 0:00:04]} d5 {[%emt 0:00:01]} 3. Bg2 {[%emt 0:00:01]} Nf6 {[%emt 0:00:00]} 4. Nf3 {[%emt 0:00:02]} Be7 {[%emt 0:00:01]} 5. O-O {[%emt 0:00:01]} O-O {[%emt 0:00:02]} 6. b3 {[%emt 0:00:01]} c6 {[%emt 0:00:02]} 7. Bb2 {[%emt 0:00:03]} b6 {[%emt 0:00:02]} 8. d4 {[%emt 0:00:17]} Bb7 {[%emt 0:00:01]} 9. Nc3 {[%emt 0:00:05]} Nbd7 {[%emt 0:00:02]} 10. Rc1 {[%emt 0:00:01]} Rc8 {[%emt 0:00:07]} 11. e3 {[%emt 0:00:21]} Re8 {[%emt 0:00:14]} 12. Qe2 {[%emt 0:00:02]} Bd6 {[%emt 0:00:17]} 13. Rfd1 {[%emt 0:00:01]} Qe7 {[%emt 0:00:05]} 14. Qd3 {[%emt 0:00:42]} Ba6 {[%emt 0:00:33]} 15. h4 {[%emt 0:00:36]} Bb8 {[%emt 0:00:06]} 16. Bf1 {[%emt 0:00:14]} c5 {[%emt 0:00:30]} 17. Nb5 {[%emt 0:00:21]} Ne4 {[%emt 0:00:14]} 18. a4 {[%emt 0:00:06]} Ndf6 {[%emt 0:00:18]} 19. Bg2 {[%emt 0:00:05]} Ng4 {[%emt 0:00:12]} 20. Rf1 {[%emt 0:00:03]} Rcd8 {[%emt 0:00:10]} 21. Ne5 {[%emt 0:00:16]} Nxe5 {[%emt 0:00:18]} 22. dxe5 {[%emt 0:00:01]} Bb7 {[%emt 0:00:01]} 23. Qe2 {[%emt 0:00:08]} a6 {[%emt 0:00:03]} 24. Nc3 {[%emt 0:00:01]} Nxc3 {[%emt 0:00:02]} 25. Bxc3 {[%emt 0:00:01]} d4 {[%emt 0:00:03]} 26. exd4 {[%emt 0:00:05]} Bxg2 {[%emt 0:00:04]} 27. Kxg2 {[%emt 0:00:02]} cxd4 {[%emt 0:00:01]} 28. Bd2 {[%emt 0:00:01]} Qb7+ {[%emt 0:00:04]} 29. Kg1 {[%emt 0:00:02]} Qc6 {[%emt 0:00:11]} 30. Bf4 {[%emt 0:00:01]} Rd7 {[%emt 0:00:03]} 31. Rfd1 {[%emt 0:00:02]} h6 {[%emt 0:00:02]} 32. Rd3 {[%emt 0:00:02]} Red8 {[%emt 0:00:00]} 33. Rcd1 Qc5 34. Qe4 {[%emt 0:00:03]} a5 {[%emt 0:00:06]} 35. Kh2 {[%emt 0:00:02]} Bc7 {[%emt 0:00:03]} 36. h5 {[%emt 0:00:04]} Bb8 {[%emt 0:00:01]} 37. Qe2 {[%emt 0:00:06]} Qb4 {[%emt 0:00:01]} 38. Kg1 {[%emt 0:00:03]} Bc7 {[%emt 0:00:03]} 39. g4 {[%emt 0:00:02]} Qe7 {[%emt 0:00:04]} 40. Kg2 {[%emt 0:00:01]} Qb4 {[%emt 0:00:04]} 41. Qe4 {[%emt 0:00:02]} Bb8 {[%emt 0:00:02]} 42. Kg3 {[%emt 0:00:05]} Qc5 {[%emt 0:00:05]} 43. Kg2 {[%emt 0:00:01]} Bc7 {[%emt 0:00:01]} 44. f3 {[%emt 0:00:02]} Bb8 {[%emt 0:00:01]} 45. Kg3 {[%emt 0:00:01]} Bc7 {[%emt 0:00:00]} 46. Kh3 {[%emt 0:00:02]} Bb8 {[%emt 0:00:03]} 47. Bg3 {[%emt 0:00:02]} Bc7 {[%emt 0:00:04]} 48. Qe2 {[%emt 0:00:03]} Qb4 {[%emt 0:00:02]} 49. Bf2 {[%emt 0:00:03]} Qc5 {[%emt 0:00:02]} 50. Bg3 {[%emt 0:00:02]} Qb4 {[%emt 0:00:02]} 51. f4 {[%emt 0:00:02]} Bb8 {[%emt 0:00:05]} 52. Qe4 {[%emt 0:00:01]} Qc5 {[%emt 0:00:01]} 53. Bf2 {[%emt 0:00:01]} Kf8 {[%emt 0:00:07]} 54. Rxd4 {[%emt 0:00:02]} Rxd4 {[%emt 0:00:02]} 55. Rxd4 {[%emt 0:00:02]} Rxd4 {[%emt 0:00:02]} 56. Qxd4 {[%emt 0:00:02]} Qb4 {[%emt 0:00:02]} 57. Qd8# {[%emt 0:00:02]} 1-0

[Event "RUS-ch Women Blitz 2019"]
[Site "Sochi"]
[Date "2019.10.17"]
[Round "9.12"]
[White "Shafigullina, Zarina"]
[Black "Yakimova, Mariya"]
[Result "0-1"]
[ECO "A84"]
[WhiteElo "2295"]
[BlackElo "2276"]
[Annotator "NA"]
[PlyCount "71"]
[EventDate "2019.10.17"]
[EventType "swiss"]
[EventCountry "RUS"]
[SourceTitle "playchess.com"]
[Source "ChessBase"]
[SourceQuality "1"]
[TimeControl "180+2"]

1. d4 {[%emt 0:00:00]} f5 {[%emt 0:00:00]} 2. c4 {[%emt 0:00:00]} Nf6 {[%emt 0:00:00]} 3. Nf3 {[%emt 0:00:01]} e6 {[%emt 0:00:00]} 4. g3 {[%emt 0:00:01]} d5 {[%emt 0:00:01]} 5. Bg2 {[%emt 0:00:01]} c6 {[%emt 0:00:01]} 6. b3 {[%emt 0:00:03]} Bd6 {[%emt 0:00:02]} 7. O-O {[%emt 0:00:03]} Qe7 {[%emt 0:00:00]} 8. Bb2 {[%emt 0:00:01]} O-O {[%emt 0:00:04]} 9. Qc1 {[%emt 0:00:01]} a5 {[%emt 0:00:01]} 10. Ba3 {[%emt 0:00:01]} Bxa3 {[%emt 0:00:01]} 11. Nxa3 {[%emt 0:00:01]} b6 {[%emt 0:00:10]} 12. Ne5 {[%emt 0:00:05]} Bb7 {[%emt 0:00:02]} 13. Nc2 {[%emt 0:00:17]} Nbd7 {[%emt 0:00:05]} 14. Nd3 {[%emt 0:00:23]} a4 {[%emt 0:00:12]} 15. Ne3 {[%emt 0:00:42]} axb3 {[%emt 0:00:09]} 16. axb3 {[%emt 0:00:01]} Rxa1 {[%emt 0:00:01]} 17. Qxa1 {[%emt 0:00:01]} Ra8 {[%emt 0:00:01]} 18. Qb2 {[%emt 0:00:03]} Qa3 {[%emt 0:00:01]} 19. Qc2 {[%emt 0:00:15]} Qa2 {[%emt 0:00:18]} 20. Qc3 {[%emt 0:00:21]} g6 {[%emt 0:00:24]} 21. cxd5 {[%emt 0:00:01]} exd5 {[%emt 0:00:03]} 22. Nf4 {[%emt 0:00:02]} Ra3 {[%emt 0:00:12]} 23. Qb4 c5 {[%emt 0:00:18]} 24. dxc5 {[%emt 0:00:09]} Rxb3 {[%emt 0:00:08]} 25. Qd4 {[%emt 0:00:18]} bxc5 {[%emt 0:00:01]} 26. Qd1 {[%emt 0:00:01]} d4 {[%emt 0:00:02]} 27. Ned5 {[%emt 0:00:09]} Rb2 {[%emt 0:00:26]} 28. Nd3 {[%emt 0:00:28]} Bxd5 {[%emt 0:00:21]} 29. Bxd5+ {[%emt 0:00:10]} Nxd5 {[%emt 0:00:02]} 30. Nxb2 {[%emt 0:00:02]} Qxb2 {[%emt 0:00:02]} 31. Qa4 {[%emt 0:00:01]} N7f6 {[%emt 0:00:08]} 32. Qc6 {[%emt 0:00:05]} Qxe2 {[%emt 0:00:22]} 33. Ra1 {[%emt 0:00:01]} Kg7 {[%emt 0:00:05]} 34. Qxc5 {[%emt 0:00:06]} d3 {[%emt 0:00:02]} 35. Qd4 {[%emt 0:00:07]} d2 {[%emt 0:00:09]} 36. h4 {[%emt 0:00:11]} 0-1